fUSD/lending_fUSD_20241125
["ID","MTS","AMOUNT","RATE_DAILY","PERIOD"]
[343301614,1732549896457,-500.0,0.00044657,30]
[343301615,1732549896466,-503.90548139,0.00044657,30]
[343301616,1732549896475,-476.95610051,0.00044657,30]
[343301617,1732549896486,-814.58,0.00044657,30]
[343301618,1732549896496,-500.0,0.00044657,30]
[343301619,1732549896505,-500.0,0.00044657,30]
[343301620,1732549896514,-500.0,0.00044657,30]
[343301621,1732549896523,-500.0,0.00044657,30]
[343301622,1732549896533,-496.37152998,0.00044657,30]
[343301623,1732549896542,-500.0,0.00044657,30]
[343301624,1732549896551,-500.0,0.00044657,30]
[343301625,1732549896560,-500.0,0.00044657,30]
[343301626,1732549896569,-500.0,0.00044657,30]
[343301627,1732549896579,-2666.54,0.00044657,30]
[343301628,1732549896591,-291.94,0.00044657,30]
[343301629,1732549896609,-500.0,0.00044657,30]
[343301630,1732549896626,-500.0,0.00044657,30]
[343301631,1732549896637,-500.0,0.00044657,30]
[343301632,1732549896650,-500.0,0.00044657,30]
[343301633,1732549896663,-500.0,0.00044657,30]
[343301634,1732549896673,-500.0,0.00044657,30]
[343301635,1732549896682,-500.0,0.00044657,30]
[343301636,1732549896692,-1799.028043,0.00044657,14]
[343301637,1732549896701,-500.0,0.00044657,30]
[343301638,1732549896711,-862.79,0.00044657,30]
[343301639,1732549896726,-1799.028038,0.00044657,14]
[343301640,1732549896741,-500.0,0.00044657,30]
[343301641,1732549896753,-500.0,0.00044657,30]
[343301642,1732549896762,-557.63,0.00044657,30]
[343301643,1732549896771,-1030.53,0.00044657,30]
[343301644,1732549896780,-597.22011323,0.00044657,30]
[343301645,1732549896789,-500.0,0.00044657,30]
[343301646,1732549896797,-500.0,0.00044657,30]
[343301647,1732549896806,-500.0,0.00044657,30]
[343301648,1732549896881,-500.0,0.00044657,30]
[343301649,1732549896891,-500.0,0.00044657,30]
[343301650,1732549896900,-500.0,0.00044657,30]
[343301651,1732549896910,-500.0,0.00044657,30]
[343301652,1732549896919,-500.0,0.00044657,30]
[343301653,1732549896928,-500.0,0.00044657,30]
[343301654,1732549896940,-500.0,0.00044657,30]
[343301655,1732549896949,-500.0,0.00044657,30]
[343301656,1732549896959,-500.0,0.00044657,30]
[343301657,1732549896968,-500.0,0.00044657,30]
[343301658,1732549896979,-500.0,0.00044657,30]
[343301659,1732549896994,-590.84,0.00044657,30]
[343301660,1732549897005,-1495.52,0.00044657,30]
[343301661,1732549897016,-500.0,0.00044657,30]
[343301662,1732549897025,-500.0,0.00044657,30]
[343301663,1732549897034,-578.72535576,0.00044657,30]
[343301664,1732549897043,-500.0,0.00044657,30]
[343301665,1732549897052,-623.44,0.00044657,30]
[343301666,1732549897061,-500.0,0.00044657,30]
[343301667,1732549897070,-500.0,0.00044657,30]
[343301668,1732549897079,-500.0,0.00044657,30]
[343301669,1732549897088,-500.0,0.00044657,30]
[343301670,1732549897098,-657.13,0.00044657,30]
[343301671,1732549897107,-731.69,0.00044657,30]
[343301672,1732549897116,-500.0,0.00044657,30]
[343301673,1732549897125,-500.0,0.00044657,30]
[343301674,1732549897135,-155.31280651,0.00044657,30]
[343301675,1732549897143,-500.0,0.00044657,30]
[343301676,1732549897153,-500.0,0.00044657,30]
[343301677,1732549897162,-500.0,0.00044657,30]
[343301678,1732549897171,-500.0,0.00044657,30]
[343301679,1732549897180,-361.74682787,0.00044657,30]
[343301680,1732549897189,-613.70537365,0.00044657,30]
[343301681,1732549897199,-500.0,0.00044657,30]
[343301682,1732549897207,-932.32,0.00044657,30]
[343301683,1732549897217,-687.2,0.00044657,30]
[343301684,1732549897226,-500.0,0.00044657,30]
[343301685,1732549897238,-500.0,0.00044657,30]
[343301686,1732549897248,-500.0,0.00044657,30]
[343301687,1732549897257,-500.0,0.00044657,30]
[343301688,1732549897267,-500.0,0.00044657,30]
[343301689,1732549897276,-500.0,0.00044657,30]
[343301690,1732549897286,-500.0,0.00044657,30]
[343301691,1732549897296,-500.0,0.00044657,30]
[343301692,1732549897306,-591.64,0.00044657,30]
[343301693,1732549897316,-500.0,0.00044657,30]
[343301694,1732549897325,-500.0,0.00044657,30]
[343301695,1732549897335,-500.0,0.00044657,30]
[343301696,1732549897344,-500.0,0.00044657,30]
[343301697,1732549897353,-500.0,0.00044657,30]
[343301698,1732549897362,-907.4,0.00044657,30]
[343301699,1732549897372,-500.0,0.00044657,30]
[343301700,1732549897382,-500.0,0.00044657,30]
[343301701,1732549897391,-500.0,0.00044657,30]
[343301702,1732549897401,-500.0,0.00044657,30]
[343301703,1732549897411,-552.46,0.00044657,30]
[343301704,1732549897421,-500.0,0.00044657,30]
[343301705,1732549897430,-644.31,0.00044657,30]
[343301706,1732549897439,-500.0,0.00044657,30]
[343301707,1732549897449,-500.0,0.00044657,30]
[343301708,1732549897459,-500.0,0.00044657,30]
[343301709,1732549897469,-627.6280273,0.00044657,30]
[343301710,1732549897478,-500.0,0.00044657,30]
[343301711,1732549897491,-173.16830166,0.00044657,30]
[343301712,1732549897500,-500.0,0.00044657,30]
[343301713,1732549897509,-500.0,0.00044657,30]
[343301714,1732549897518,-399.8,0.00044657,30]
[343301715,1732549897527,-500.0,0.00044657,30]
[343301716,1732549897536,-500.0,0.00044657,30]
[343301717,1732549897546,-316.8,0.00044657,30]
[343301718,1732549897555,-500.0,0.00044657,30]
[343301719,1732549897563,-500.0,0.00044657,30]
[343301720,1732549897572,-500.0,0.00044657,30]
[343301721,1732549897581,-213.75,0.00044657,30]
[343301722,1732549897590,-500.0,0.00044657,30]
[343301723,1732549897600,-304.86708784,0.00044657,30]
[343301724,1732549897609,-500.0,0.00044657,30]
[343301725,1732549897619,-500.0,0.00044657,30]
[343301726,1732549897627,-505.37343035,0.00044657,30]
[343301727,1732549897637,-500.0,0.00044657,30]
[343301728,1732549897647,-500.0,0.00044657,30]
[343301729,1732549897656,-1124.8,0.00044657,30]
[343301730,1732549897666,-511.23241424,0.00044657,30]
[343301731,1732549897675,-500.0,0.00044657,30]
[343301732,1732549897685,-1101.56,0.00044657,30]
[343301733,1732549897694,-500.0,0.00044657,30]
[343301734,1732549897703,-500.0,0.00044657,30]
[343301735,1732549897712,-500.0,0.00044657,30]
[343301736,1732549897721,-500.0,0.00044657,30]
[343301737,1732549897730,-500.0,0.00044657,30]
[343301738,1732549897742,-500.0,0.00044657,30]
[343301739,1732549897752,-500.0,0.00044657,30]
[343301740,1732549897761,-635.67,0.00044657,30]
[343301741,1732549897771,-2855.27,0.00044657,30]
[343301742,1732549897780,-500.0,0.00044657,30]
[343301743,1732549897789,-500.0,0.00044657,30]
[343301744,1732549897799,-509.90622576,0.00044657,30]
[343301745,1732549897808,-500.0,0.00044657,30]
[343301746,1732549897817,-500.0,0.00044657,2]
[343301747,1732549897826,-500.0,0.00044657,30]
[343301748,1732549897838,-978.65,0.00044657,30]
[343301749,1732549897848,-500.0,0.00044657,30]
[343301750,1732549897857,-500.0,0.00044657,30]
[343301751,1732549897866,-3323.08,0.00044657,30]
[343301752,1732549897875,-500.0,0.00044657,30]
[343301753,1732549897884,-479.36,0.00044657,30]
[343301754,1732549897893,-500.0,0.00044657,30]
[343301755,1732549897903,-500.0,0.00044657,30]
[343301756,1732549897913,-536.58,0.00044657,30]
[343301757,1732549897922,-500.0,0.00044657,30]
[343301758,1732549897932,-222.02467263,0.00044657,30]
[343301759,1732549897944,-500.0,0.00044657,30]
[343301760,1732549897954,-2778.48,0.00044657,30]
[343301761,1732549897963,-4802.72,0.00044657,30]
[343301762,1732549897973,-500.0,0.00044657,30]
[343301763,1732549897983,-500.0,0.00044657,30]
[343301764,1732549897998,-1151.35,0.00044657,30]
[343301765,1732549898007,-580.25320776,0.00044657,30]
[343301766,1732549898017,-571.23987179,0.00044657,30]
[343301767,1732549898026,-783.79,0.00044657,30]
[343301768,1732549898035,-500.0,0.00044657,30]
[343301769,1732549898047,-500.0,0.00044657,30]
[343301770,1732549898057,-3206.08,0.00044657,30]
[343301771,1732549898066,-213.33871728,0.00044657,30]
[343301772,1732549898720,-286.66128272,0.00044657,30]
[343301773,1732549898730,-256.51,0.00044657,30]
[343301774,1732549898743,-506.52070118,0.00044657,30]
[343301775,1732549898754,-500.0,0.00044657,30]
[343301776,1732549898765,-500.0,0.00044657,30]
[343301777,1732549898775,-470.37262792,0.00044657,30]
[343301778,1732549898786,-500.0,0.00044657,30]
[343301779,1732549898797,-588.09548528,0.00044657,30]
[343301780,1732549898808,-1614.03,0.00044657,30]
[343301781,1732549898819,-500.0,0.00044657,30]
[343301782,1732549898830,-500.0,0.00044657,30]
[343301783,1732549898841,-7976.48,0.00044657,30]
[343301784,1732549898852,-1303.95,0.00044657,30]
[343301785,1732549898862,-705.27,0.00044657,30]
[343301786,1732549898873,-4144.66,0.00044657,30]
[343301787,1732549898883,-500.0,0.00044657,30]
[343301788,1732549898894,-562.19557718,0.00044657,30]
[343301789,1732549898904,-500.0,0.00044657,30]
[343301790,1732549898915,-500.0,0.00044657,30]
[343301791,1732549898925,-613.41720639,0.00044657,30]
[343301792,1732549898938,-4684.74,0.00044657,30]
[343301793,1732549898948,-500.0,0.00044657,30]
[343301794,1732549898958,-500.0,0.00044657,30]
[343301795,1732549898968,-509.11658713,0.00044657,30]
[343301796,1732549898980,-615.81,0.00044657,30]
[343301797,1732549898992,-630.63,0.00044657,30]
[343301798,1732549899003,-500.0,0.00044657,30]
[343301799,1732549899013,-500.0,0.00044657,30]
[343301800,1732549899024,-734.35,0.00044657,30]
[343301801,1732549899034,-4335.28,0.00044657,30]
[343301802,1732549899044,-500.0,0.00044657,30]
[343301803,1732549899056,-500.0,0.00044657,30]
[343301804,1732549899067,-573.7769207,0.00044657,30]
[343301805,1732549899076,-500.0,0.00044657,30]
[343301806,1732549899086,-500.0,0.00044657,30]
[343301807,1732549899095,-500.0,0.00044657,30]
[343301808,1732549899105,-711.23,0.00044657,30]
[343301809,1732549899115,-500.0,0.00044657,30]
[343301810,1732549899125,-676.71,0.00044657,30]
[343301811,1732549899136,-500.0,0.00044657,30]
[343301812,1732549899146,-1453.1,0.00044657,30]
[343301813,1732549899156,-500.0,0.00044657,30]
[343301814,1732549899166,-500.0,0.00044657,30]
[343301815,1732549899176,-14587.66,0.00044657,30]
[343301816,1732549899186,-731.32,0.00044657,30]
[343301817,1732549899197,-500.0,0.00044657,30]
[343301818,1732549899207,-500.0,0.00044657,30]
[343301819,1732549899218,-500.0,0.00044657,30]
[343301820,1732549899229,-518.06,0.00044657,30]
[343301821,1732549899243,-500.0,0.00044657,30]
[343301822,1732549899254,-500.0,0.00044657,30]
[343301823,1732549899265,-500.0,0.00044657,30]
[343301824,1732549899275,-500.0,0.00044657,30]
[343301825,1732549899286,-519.16,0.00044657,30]
[343301826,1732549899297,-500.0,0.00044657,30]
[343301827,1732549899307,-500.0,0.00044657,30]
[343301828,1732549899318,-725.78,0.00044657,30]
[343301829,1732549899329,-500.0,0.00044657,30]
[343301830,1732549899342,-500.0,0.00044657,30]
[343301831,1732549899357,-500.0,0.00044657,30]
[343301832,1732549899368,-500.0,0.00044657,30]
[343301833,1732549899377,-500.0,0.00044657,30]
[343301834,1732549899387,-500.0,0.00044657,7]
[343301835,1732549899397,-500.0,0.00044657,30]
[343301836,1732549899407,-476.11325758,0.00044657,30]
[343301837,1732549899422,-96.14674242,0.00044657,30]
[343301838,1732549899432,-500.0,0.00044657,30]
[343301839,1732549899442,-500.0,0.00044657,30]
[343301840,1732549899453,-500.0,0.00044657,30]
[343301841,1732549899463,-500.0,0.00044657,30]
[343301842,1732549899473,-500.0,0.00044657,30]
[343301843,1732549899483,-500.0,0.00044657,30]
[343301844,1732549899661,-617.03,0.00044657,30]
[343301845,1732549899671,-500.0,0.00044657,30]
[343301846,1732549899682,-784.36,0.00044657,30]
[343301847,1732549899692,-339.89,0.00044657,30]
[343301848,1732549899702,-1056.53,0.00044657,30]
[343301849,1732549899713,-968.38,0.00044657,30]
[343301850,1732549899723,-489.1,0.00044657,30]
[343301851,1732549899733,-653.67,0.00044657,30]
[343301852,1732549899746,-500.0,0.00044657,30]
[343301853,1732549899755,-677.74,0.00044657,30]
[343301854,1732549899765,-500.0,0.00044657,30]
[343301855,1732549899774,-500.0,0.00044657,30]
[343301856,1732549899784,-500.0,0.00044657,30]
[343301857,1732549899795,-918.9,0.00044657,30]
[343301858,1732549899805,-500.0,0.00044657,30]
[343301859,1732549899814,-500.0,0.00044657,7]
[343301860,1732549899824,-561.88,0.00044657,120]
[343301861,1732549899833,-1283.32,0.00044657,30]
[343301862,1732549899843,-686.32,0.00044657,30]
[343301863,1732549899852,-969.43,0.00044657,30]
[343301864,1732549899861,-500.0,0.00044657,30]
[343301865,1732549899872,-500.0,0.00044657,30]
[343301866,1732549899881,-500.0,0.00044657,7]
[343301867,1732549899891,-579.15,0.00044657,30]
[343301868,1732549899900,-500.0,0.00044657,30]
[343301869,1732549899911,-500.0,0.00044657,30]
[343301870,1732549899920,-520.57396932,0.00044657,30]
[343301871,1732549899936,-567.29603068,0.00044657,30]
[343301872,1732549899950,-2904.23,0.00044657,30]
[343301873,1732549899959,-500.0,0.00044657,30]
[343301874,1732549899969,-1313.67,0.00044657,21]
[343301875,1732549899981,-500.0,0.00044657,30]
[343301876,1732549899992,-500.0,0.00044657,30]
[343301877,1732549900002,-500.0,0.00044657,30]
[343301878,1732549900013,-500.0,0.00044657,30]
[343301879,1732549900023,-832.32169396,0.00044657,30]
[343301880,1732549900037,-191.82830604,0.00044657,30]
[343301881,1732549900047,-2386.24969296,0.00044657,30]
[343301882,1732549900059,-160.40030704,0.00044657,30]
[343301883,1732549900074,-224.34491673,0.00044657,30]
[343301884,1732549900086,-71.89104248,0.00044657,30]
[343301885,1732549900096,-411.32895752,0.00044657,30]
[343301886,1732549900107,-259.50104248,0.00044657,30]
[343301887,1732549900117,-500.0,0.00044657,30]
[343301888,1732549900127,-500.0,0.00044657,30]
[343301889,1732549900137,-155.39895752,0.00044657,30]
[343301890,1732549900149,-1724.3177,0.00044657,30]
[343301891,1732549900251,-7948.40334248,0.00044657,30]
[343301892,1732549900261,-500.0,0.00044657,30]
[343301893,1732549900270,-592.5771499,0.00044657,30]
[343301894,1732549900280,-500.0,0.00044657,30]
[343301895,1732549900290,-500.0,0.00044657,30]
[343301896,1732549900300,-500.0,0.00044657,30]
[343301897,1732549900310,-500.0,0.00044657,30]
[343301898,1732549900320,-4620.65,0.00044657,30]
[343301899,1732549900330,-500.0,0.00044657,30]
[343301900,1732549900342,-1160.37,0.00044657,30]
[343301901,1732549900353,-500.0,0.00044657,30]
[343301902,1732549900363,-500.0,0.00044657,30]
[343301903,1732549900373,-500.0,0.00044657,30]
[343301904,1732549900384,-500.0,0.00044657,30]
[343301905,1732549900394,-500.0,0.00044657,30]
[343301906,1732549900404,-779.77,0.00044657,30]
[343301907,1732549900414,-500.0,0.00044657,30]
[343301908,1732549900425,-604.02,0.00044657,30]
[343301909,1732549900435,-2763.33,0.00044657,30]
[343301910,1732549900446,-500.0,0.00044657,30]
[343301911,1732549900457,-740.79,0.00044657,30]
[343301912,1732549900470,-500.0,0.00044657,23]
[343301913,1732549900480,-500.0,0.00044657,30]
[343301914,1732549900497,-500.0,0.00044657,30]
[343301915,1732549900508,-500.0,0.00044657,30]
[343301916,1732549900518,-500.0,0.00044657,30]
[343301917,1732549900528,-500.0,0.00044657,30]
[343301918,1732549900539,-500.0,0.00044657,30]
[343301919,1732549900549,-675.85,0.00044657,30]
[343301920,1732549900559,-665.85,0.00044657,30]
[343301921,1732549900569,-823.57,0.00044657,30]
[343301922,1732549900579,-1517.0,0.00044657,30]
[343301923,1732549900589,-230.18273551,0.00044657,30]
[343301924,1732549900599,-500.0,0.00044657,30]
[343301925,1732549900609,-2468.83,0.00044657,30]
[343301926,1732549900622,-456.98,0.00044657,30]
[343301927,1732549900632,-449.16151407,0.00044657,30]
[343301928,1732549900642,-500.0,0.00044657,30]
[343301929,1732549900653,-500.0,0.00044657,30]
[343301930,1732549900665,-500.0,0.00044657,30]
[343301931,1732549900675,-1853.77,0.00044657,30]
[343301932,1732549900685,-500.0,0.00044657,30]
[343301933,1732549900695,-500.0,0.00044657,30]
[343301934,1732549900705,-839.75,0.00044657,30]
[343301935,1732549900715,-529.24897387,0.00044657,30]
[343301936,1732549900772,150.0,0.000323,120]
[343301937,1732549901302,-871.29820828,0.0004096,2]
[343301938,1732549901424,-128.70179172,0.0004096,2]
[343301939,1732549901433,-150.0,0.00041062,2]
[343301940,1732549901443,-150.0,0.00041087,2]
[343301941,1732549901452,-150.0,0.00041356,2]
[343301942,1732549901462,-150.0,0.0004159,2]
[343301943,1732549901472,-150.0,0.00041612,2]
[343301944,1732549901482,-150.0,0.00041899,2]
[343301945,1732549901497,-150.0,0.00042154,2]
[343301946,1732549901507,-150.0,0.00042234,2]
[343301947,1732549901517,-150.0,0.00042299,2]
[343301948,1732549901527,-150.0,0.00042588,2]
[343301949,1732549901537,-150.0,0.0004268,2]
[343301950,1732549901547,-150.0,0.00042691,2]
[343301951,1732549901556,-150.0,0.00042712,2]
[343301952,1732549901565,-150.0,0.00042848,2]
[343301953,1732549901575,-150.0,0.00042871,2]
[343301954,1732549901584,-628.761076,0.00042899,14]
[343301955,1732549901594,-150.0,0.0004292,2]
[343301956,1732549901603,-150.0,0.00042933,2]
[343301957,1732549901613,-150.0,0.00042938,2]
[343301958,1732549901622,-150.0,0.00042947,2]
[343301959,1732549901632,-628.761076,0.0004298,14]
[343301960,1732549901641,-107.45799928,0.00043038,2]
[343301961,1732549901653,-42.54200072,0.00043038,2]
[343301962,1732549901663,-150.0,0.00043043,2]
[343301963,1732549901672,-150.0,0.00043159,2]
[343301964,1732549901682,-150.0,0.00043421,2]
[343301965,1732549901691,-150.0,0.00043472,2]
[343301966,1732549901700,-150.0,0.00043481,2]
[343301967,1732549901708,-628.761076,0.00043508,14]
[343301968,1732549901718,-150.0,0.00043603,2]
[343301969,1732549901727,-150.0,0.00043636,2]
[343301970,1732549901736,-150.0,0.00043765,2]
[343301971,1732549901749,-500.0,0.00043835,30]
[343301972,1732549901759,-628.761076,0.00043835,14]
[343301973,1732549901768,-628.761076,0.00043835,14]
[343301974,1732549901778,-628.761076,0.00043835,14]
[343301975,1732549901787,-547.19022596,0.00043835,30]
[343301976,1732549901796,-500.0,0.00043835,30]
[343301977,1732549901806,-628.761076,0.00043835,14]
[343301978,1732549901815,-150.0,0.00043846,2]
[343301979,1732549901825,-150.0,0.00043883,2]
[343301980,1732549901834,-150.0,0.00043976,2]
[343301981,1732549901843,-317.36552004,0.00043991,2]
[343301982,1732549901863,-150.0,0.00044137,2]
[343301983,1732549901875,-150.0,0.00044302,2]
[343301984,1732549901885,-150.0,0.00044351,2]
[343301985,1732549901894,-150.0,0.00044454,2]
[343301986,1732549901903,-150.0,0.00044518,2]
[343301987,1732549901913,-150.0,0.00044614,2]
[343301988,1732549901923,-150.0,0.0004462,2]
[343301989,1732549901932,-1145.28102613,0.00044657,30]
[343301990,1732549901945,-500.0,0.00044657,30]
[343301991,1732549901954,-500.0,0.00044657,30]
[343301992,1732549901963,-518.08,0.00044657,30]
[343301993,1732549901972,-792.07,0.00044657,30]
[343301994,1732549901982,-500.0,0.00044657,30]
[343301995,1732549901995,-263.65865929,0.00044657,30]
[343301996,1732549902004,-409.92988786,0.00044657,30]
[343301997,1732549902017,-90.07011214,0.00044657,30]
[343301998,1732549902027,-500.0,0.00044657,30]
[343301999,1732549902036,-500.0,0.00044657,30]
[343302000,1732549902046,-500.0,0.00044657,30]
[343302001,1732549902056,-500.0,0.00044657,30]
[343302002,1732549902066,-883.95,0.00044657,30]
[343302003,1732549902075,-3457.99,0.00044657,30]
[343302004,1732549902084,-635.98988786,0.00044657,30]
[343302005,1732549902112,-500.0,0.00044109,30]
[343302006,1732549902121,-3121.67011214,0.00044657,30]
[343302007,1732549902130,-2700.69,0.00044657,30]
[343302008,1732549902140,-500.0,0.00044657,30]
[343302009,1732549902149,-789.32,0.00044657,30]
[343302010,1732549902159,-972.97,0.00044657,30]
[343302011,1732549902168,-500.0,0.00044657,30]
[343302012,1732549902178,-335.53842483,0.00044657,30]
[343302013,1732549902188,-500.0,0.00044657,30]
[343302014,1732549902197,-500.0,0.00044657,30]
[343302015,1732549902207,-500.0,0.00044657,30]
[343302016,1732549902218,-500.0,0.00044657,30]
[343302017,1732549902228,-500.0,0.00044657,30]
[343302018,1732549902238,-500.0,0.00044657,30]
[343302019,1732549902253,-500.0,0.00044657,30]
[343302020,1732549902262,-2506.73,0.00044657,30]
[343302021,1732549902273,-500.0,0.00044657,30]
[343302022,1732549902282,-500.0,0.00044657,30]
[343302023,1732549902292,-3893.71,0.00044657,30]
[343302024,1732549902466,-500.0,0.00044657,30]
[343302025,1732549902477,-500.0,0.00044657,30]
[343302026,1732549902487,-382.0,0.00044657,30]
[343302027,1732549902501,-1850.27,0.00044657,30]
[343302028,1732549902511,-500.0,0.00044657,30]
[343302029,1732549902521,-1008.12,0.00044657,30]
[343302030,1732549902531,-500.0,0.00044657,30]
[343302031,1732549902541,-567.77,0.00044657,30]
[343302032,1732549902550,-500.0,0.00044657,30]
[343302033,1732549902561,-500.0,0.00044657,30]
[343302034,1732549902571,-500.0,0.00044657,30]
[343302035,1732549902581,-500.0,0.00044657,30]
[343302036,1732549902591,-6234.87,0.00044657,30]
[343302037,1732549902600,-500.0,0.00044657,30]
[343302038,1732549902610,-2005.94,0.00044657,30]
[343302039,1732549902620,-11019.54946303,0.00044657,30]
[343302040,1732549902844,-150.0,0.00041377,2]
[343302041,1732549902854,-150.0,0.00041684,2]
[343302042,1732549902863,-150.0,0.00042959,2]
[343302043,1732549902872,-30.3332896,0.00042968,2]
[343302044,1732549902883,-119.6667104,0.00042968,2]
[343302045,1732549902892,-150.0,0.00043135,2]
[343302046,1732549902901,-500.0,0.00043835,30]
[343302047,1732549902911,-500.0,0.00043835,30]
[343302048,1732549902919,-170.7373018,0.00044,14]
[343302049,1732549902931,-411.21504,0.00044,14]
[343302050,1732549903021,-46.8087342,0.00044,14]
[343302051,1732549903031,-431.6318992,0.00044,14]
[343302052,1732549903056,-197.1291768,0.00044,14]
[343302053,1732549903065,-628.761076,0.00044109,14]
[343302054,1732549903075,-500.0,0.00044109,30]
[343302055,1732549903084,-150.0,0.00044364,2]
[343302056,1732549903094,-500.0,0.00044383,30]
[343302057,1732549903103,-2684.02053697,0.00044657,30]
[343302058,1732549903113,-204.66351528,0.00044657,30]
[343302059,1732549903123,-500.0,0.00044657,30]
[343302060,1732549903132,-500.0,0.00044657,30]
[343302061,1732549903142,-641.71,0.00044657,30]
[343302062,1732549903152,-558.45,0.00044657,30]
[343302063,1732549903161,-515.13,0.00044657,30]
[343302064,1732549903171,-500.0,0.00044657,30]
[343302065,1732549903180,-500.0,0.00044657,30]
[343302066,1732549903190,-500.0,0.00044657,30]
[343302067,1732549903200,-500.0,0.00044657,30]
[343302068,1732549903209,-159.92522817,0.00044657,30]
[343302069,1732549903219,-500.0,0.00044657,30]
[343302070,1732549903229,-500.0,0.00044657,30]
[343302071,1732549903239,-500.0,0.00044657,30]
[343302072,1732549903252,-4568.06,0.00044657,30]
[343302073,1732549903262,-2367.1,0.00044657,120]
[343302074,1732549903272,-596.46,0.00044657,30]
[343302075,1732549903283,-715.03,0.00044657,30]
[343302076,1732549903293,-4472.84,0.00044657,30]
[343302077,1732549903303,-500.0,0.00044657,30]
[343302078,1732549903313,-500.0,0.00044657,30]
[343302079,1732549903323,-617.49331075,0.00044657,30]
[343302080,1732549903332,-500.0,0.00044657,30]
[343302081,1732549903342,-2325.15,0.00044657,30]
[343302082,1732549903352,-500.0,0.00044657,30]
[343302083,1732549903361,-500.0,0.00044657,30]
[343302084,1732549903371,-500.0,0.00044657,30]
[343302085,1732549903380,-500.0,0.00044657,30]
[343302086,1732549903390,-500.0,0.00044657,30]
[343302087,1732549903400,-500.0,0.00044657,30]
[343302088,1732549903409,-500.0,0.00044657,2]
[343302089,1732549903420,-500.0,0.00044657,30]
[343302090,1732549903430,-12.2771556,0.00044657,30]
[343302091,1732549903443,-487.7228444,0.00044657,30]
[343302092,1732549903453,-500.0,0.00044657,30]
[343302093,1732549903462,-500.0,0.00044657,30]
[343302094,1732549903472,-500.0,0.00044657,30]
[343302095,1732549903482,-1194.12,0.00044657,30]
[343302096,1732549903493,-500.0,0.00044657,30]
[343302097,1732549903502,-500.0,0.00044657,30]
[343302098,1732549903512,-500.0,0.00044657,30]
[343302099,1732549903522,-5414.79,0.00044657,30]
[343302100,1732549903531,-500.0,0.00044657,30]
[343302101,1732549903541,-500.0,0.00044657,30]
[343302102,1732549903551,-500.0,0.00044657,30]
[343302103,1732549903560,-152.88367814,0.00044657,30]
[343302104,1732549903569,-2647.55747348,0.00044657,30]
[343302105,1732549903580,-4512.87956001,0.00044657,30]
[343302106,1732549903592,-1772.75296651,0.00044657,30]
[343302107,1732549903601,-1674.04703349,0.00044657,30]
[343302108,1732549903658,-395.78370412,0.00044657,30]
[343302109,1732549903669,-52.40926239,0.00044657,30]
[343302110,1732549903678,-500.0,0.00044657,30]
[343302111,1732549903688,-150.0,0.00044661,7]
[343302112,1732549903697,-150.0,0.00044667,2]
[343302113,1732549903707,-150.0,0.0004467,2]